[Event "86th Tata Steel Tienkamp 2024"]
[Site "Wijk aan Zee"]
[Date "2024.01.20"]
[Round "2.2"]
[White "Pastar, Slaven"]
[Black "De Winter, Arthur"]
[Result "1/2-1/2"]
[ECO "B80"]
[WhiteElo "2343"]
[BlackElo "2409"]
[Annotator "RC"]
[PlyCount "159"]
[EventDate "2024.01.02"]
[EventType "tourn"]
[EventCountry "NED"]
[SourceTitle "playchess.com"]
[Source "ChessBase"]
[SourceQuality "1"]
[TimeControl "40/6000+30:20/3000+30:900+30"]

1. e4 {[%emt 0:10:11]} c5 {[%emt 0:10:05]} 2. Nc3 {[%emt 0:00:27]} e6 {[%emt 0:02:11]} 3. Nge2 {[%emt 0:01:24]} a6 {[%emt 0:01:42]} 4. d4 {[%emt 0:09:36]} cxd4 {[%emt 0:00:05]} 5. Nxd4 {[%emt 0:00:08]} d6 {[%emt 0:00:03]} 6. g3 {[%emt 0:08:19]} Nf6 {[%emt 0:00:58]} 7. Bg2 {[%emt 0:00:37]} Be7 {[%emt 0:00:11]} 8. O-O {[%emt 0:04:34]} O-O {[%emt 0:00:06]} 9. h3 {[%emt 0:06:42]} Bd7 {[%emt 0:01:46]} 10. Be3 {[%emt 0:08:55]} Nc6 {[%emt 0:00:09]} 11. Nxc6 {[%emt 0:04:22]} Bxc6 {[%emt 0:01:35]} 12. a4 {[%emt 0:12:12]} Rc8 {[%emt 0:07:30]} 13. a5 {[%emt 0:01:13]} Nd7 {[%emt 0:04:27]} 14. Qd2 {[%emt 0:03:23]} Qc7 {[%emt 0:06:27]} 15. Rfd1 {[%emt 0:02:31]} Ne5 {[%emt 0:09:02]} 16. Bb6 {[%emt 0:03:41]} Qb8 {[%emt 0:07:08]} 17. b3 {[%emt 0:01:10]} Rfe8 {[%emt 0:07:00]} 18. Na4 {[%emt 0:08:01]} Nd7 {[%emt 0:08:45]} 19. Bd4 {[%emt 0:02:21]} Nf6 {[%emt 0:11:40]} 20. Nb6 {[%emt 0:02:27]} Rcd8 {[%emt 0:00:42]} 21. Qe3 {[%emt 0:01:14]} e5 {[%emt 0:02:09]} 22. Bb2 {[%emt 0:00:30]} h5 {[%emt 0:00:11]} 23. c4 {[%emt 0:01:42]} h4 {[%emt 0:01:15]} 24. g4 {[%emt 0:01:55]} Nh7 {[%emt 0:04:09]} 25. b4 {[%emt 0:03:51]} Nf8 {[%emt 0:02:39]} 26. Bf1 {[%emt 0:00:45]} Ne6 {[%emt 0:01:56]} 27. b5 {[%emt 0:00:23]} Bg5 {[%emt 0:00:39]} 28. Qf3 {[%emt 0:04:39]} Bd7 {[%emt 0:00:15]} 29. Nxd7 {[%emt 0:03:16]} Rxd7 {[%emt 0:00:08]} 30. Bxe5 {[%emt 0:01:01]} Nc5 {[%emt 0:02:30]} 31. Bd4 {[%emt 0:00:23]} Nxe4 {[%emt 0:01:19]} 32. Bd3 {[%emt 0:02:03]} Rde7 {[%emt 0:00:17]} 33. Qf5 {[%emt 0:00:42]} g6 {[%emt 0:01:07]} 34. Qd5 {[%emt 0:01:00]} Bh6 {[%emt 0:03:23]} 35. Kg2 {[%emt 0:01:04]} Ng5 {[%emt 0:02:26]} 36. Bf6 {[%emt 0:01:11]} Re5 {[%emt 0:02:34]} 37. Bxe5 {[%emt 0:00:30]} Rxe5 {[%emt 0:00:04]} 38. Qd4 {[%emt 0:00:16]} Ne6 {[%emt 0:00:14]} 39. Qb6 {[%emt 0:00:47]} Nf4+ {[%emt 0:02:07]} 40. Kh2 {[%emt 0:00:31]} Qc8 {[%emt 0:08:19]} 41. Bf1 {[%emt 0:26:28]} axb5 {[%emt 0:23:18]} 42. Rxd6 {[%emt 0:06:55]} Ne6 {[%emt 0:12:25]} 43. Rad1 {[%emt 0:01:07]} Bf8 {[%emt 0:03:01]} 44. R6d5 {[%emt 0:15:24]} Rxd5 {[%emt 0:01:28]} 45. cxd5 {[%emt 0:00:47]} Qc2 {[%emt 0:00:13]} 46. dxe6 {[%emt 0:01:03]} Qxd1 {[%emt 0:00:10]} 47. exf7+ {[%emt 0:00:21]} Kg7 {[%emt 0:00:31]} 48. Qxb5 {[%emt 0:00:40]} Qd4 {[%emt 0:03:07]} 49. Kg1 {[%emt 0:01:38]} Bc5 {[%emt 0:00:21]} 50. Qe2 {[%emt 0:00:30]} Qc3 {[%emt 0:06:11]} 51. Bg2 {[%emt 0:00:36]} Qa1+ {[%emt 0:00:22]} 52. Bf1 {[%emt 0:00:30]} Qc3 {[%emt 0:00:27]} 53. Bg2 {[%emt 0:00:29]} Qa1+ {[%emt 0:00:05]} 54. Qf1 {[%emt 0:00:31]} Qxa5 {[%emt 0:00:14]} 55. Bxb7 {[%emt 0:00:31]} Kxf7 {[%emt 0:00:15]} 56. Qc4+ {[%emt 0:00:26]} Kg7 {[%emt 0:00:48]} 57. Qf4 {[%emt 0:00:22]} Qa1+ {[%emt 0:01:52]} 58. Kg2 {[%emt 0:00:08]} Qd4 {[%emt 0:00:08]} 59. Be4 {[%emt 0:00:45]} Qf6 {[%emt 0:01:15]} 60. Qc7+ {[%emt 0:00:14]} Qe7 {[%emt 0:00:29]} 61. Qc6 {[%emt 0:15:27]} Qd6 {[%emt 0:15:08]} 62. Qb7+ {[%emt 0:00:34]} Qe7 {[%emt 0:00:44]} 63. Qd5 {[%emt 0:00:31]} Bd6 {[%emt 0:01:09]} 64. Qd3 {[%emt 0:00:54]} Qf6 {[%emt 0:00:25]} 65. Qd5 {[%emt 0:00:28]} Qe5 {[%emt 0:00:51]} 66. Qb7+ {[%emt 0:00:03]} Kh6 {[%emt 0:00:46]} 67. Kf1 {[%emt 0:00:57]} Qa1+ {[%emt 0:01:25]} 68. Ke2 {[%emt 0:00:38]} Qa2+ {[%emt 0:01:01]} 69. Kf1 {[%emt 0:00:33]} Bc5 {[%emt 0:00:31]} 70. Ke1 {[%emt 0:00:23]} Qxf2+ {[%emt 0:00:18]} 71. Kd1 {[%emt 0:00:06]} Qf1+ {[%emt 0:01:26]} 72. Kd2 {[%emt 0:00:55]} Qxh3 {[%emt 0:00:28]} 73. g5+ {[%emt 0:00:36]} Kxg5 {[%emt 0:00:22]} 74. Qd5+ {[%emt 0:00:20]} Kf4 {[%emt 0:00:16]} 75. Bxg6 {[%emt 0:00:34]} Bb4+ {[%emt 0:01:20]} 76. Kc2 {[%emt 0:00:28]} Qc3+ {[%emt 0:00:29]} 77. Kd1 {[%emt 0:00:38]} h3 {[%emt 0:00:15]} 78. Qf5+ {[%emt 0:00:18]} Kg3 {[%emt 0:00:28]} 79. Qd3+ {[%emt 0:00:13]} Qxd3+ {[%emt 0:00:07]} 80. Bxd3 {[%emt 0:00:03]} 1/2-1/2

[Event "86th Tata Steel Tienkamp 2024"]
[Site "Wijk aan Zee"]
[Date "2024.01.20"]
[Round "2.3"]
[White "Baselmans, Luuk"]
[Black "Zwirs, Nico"]
[Result "0-1"]
[ECO "B51"]
[WhiteElo "2323"]
[BlackElo "2476"]
[Annotator "TA"]
[PlyCount "102"]
[EventDate "2024.01.02"]
[EventType "tourn"]
[EventCountry "NED"]
[SourceTitle "playchess.com"]
[Source "ChessBase"]
[SourceQuality "1"]
[TimeControl "40/6000+30:20/3000+30:900+30"]

{[%evp 9,102,6,10,10,11,10,11,0,0,1,13,-20,-14,-35,-13,-42,-43,-50,-50,-57,-51,-185,-181,-212,-170,-324,-100,-156,-159,-161,-161,-155,-154,-185,-157,-160,-156,-163,-156,-182,-123,-160,-157,-169,-162,-181,-159,-183,-137,-226,-222,-214,-206,-254,-211,-197,0,-242,0,-205,-192,-201,-192,-273,-272,-298,-274,-266,0,-243,0,-252,-241,-241,-254,-246,-235,-272,-268,-351,-308,-516,-516,-495,-480,-779,-742,-792,-787,-762,-746,-715,-685,-818,-768]} 1. e4 {[%emt 0:10:03]} c5 {[%emt 0:10:01]} 2. Nf3 {[%emt 0:00:26]} d6 {[%emt 0:00:09]} 3. Bb5+ {[%emt 0:00:24]} Nd7 {[%emt 0:00:06]} 4. c4 {[%emt 0:00:36]} Ngf6 {[%emt 0:00:59]} 5. Nc3 {[%emt 0:00:14]} g6 {[%emt 0:00:51]} 6. d3 {[%emt 0:02:51] B51: Sicilian: Moscow Variation (3 Bb5+) without 3...Bd7.} Bg7 {[%emt 0:00:21]} 7. h3 {[%emt 0:00:15]} O-O {[%emt 0:00:22]} 8. Ba4 {[%emt 0:00:36] The position is equal.} Nb6 {[%emt 0:06:41]} 9. Bb3 {[%emt 0:01:01]} e5 {[%emt 0:00:43] [#]} 10. Nd2 $146 {[%emt 0:05:28]} ({Predecessor:} 10. Bg5 h6 11. Be3 Kh7 12. g4 Ng8 13. Qe2 Ne7 14. g5 h5 15. Nd5 Nc6 16. a4 {1-0 Haldorsen,B (2454)-Agdestein,S (2584) NOR-ch Oslo 2023 (6)}) 10... Nh5 {[%emt 0:07:15]} 11. Ne2 {[%emt 0:08:20]} f5 {[%emt 0:06:28]} 12. exf5 {[%emt 0:05:58]} gxf5 {[%emt 0:00:31]} 13. O-O {[%emt 0:00:39]} Qe8 {[%emt 0:07:19]} 14. Re1 {[%emt 0:06:02]} Qg6 {[%emt 0:09:24]} 15. f4 {[%emt 0:04:17]} Bd7 $19 {[%emt 0:03:33] [#] Strongly threatening ...Bc6.} (15... Nxf4 16. Nxf4 exf4 17. Nf3 $15) (15... exf4 16. Nf3 $11) 16. Nf3 {[%emt 0:18:39]} Bc6 {[%emt 0:02:31]} 17. Nc3 $2 {[%emt 0:01:45]} (17. Rf1) 17... Qg3 $2 {[%emt 0:12:25]} (17... Nxf4 18. Bxf4 exf4 19. Nd5 Nxd5 20. cxd5 $17) (17... exf4 18. Nd5 Rae8 19. Bd2 $19 (19. Bxf4 $2 Rxe1+ 20. Qxe1 Bxd5 $19) (19. Ne7+ $2 Rxe7 20. Rxe7 Bd4+ 21. Kh2 Rf7 $19)) (17... e4 $19 18. dxe4 fxe4) 18. Nd5 {[%emt 0:10:17]} (18. Ne2 $142 Qg6 19. Rf1) 18... Bxd5 $17 {[%emt 0:00:41]} ({Not} 18... Nxf4 19. Bxf4 exf4 20. Ne7+ Kh8 21. Nxc6 bxc6 22. Qd2 $17) 19. cxd5 {[%emt 0:00:05][%cal Rf4e5]} Nxf4 {[%emt 0:00:27]} ({And not} 19... exf4 20. Re6 $15) 20. Bxf4 {[%emt 0:00:10]} Qxf4 {[%emt 0:00:09]} (20... exf4 21. Rb1 $15) 21. Qd2 {[%emt 0:00:20]} Bh6 {[%emt 0:10:11]} 22. Qxf4 {[%emt 0:01:53]} Bxf4 {[%emt 0:00:02]} 23. Re2 {[%emt 0:00:54]} Rae8 {[%emt 0:03:24]} 24. Rf1 {[%emt 0:00:51]} Re7 {[%emt 0:07:17]} (24... e4 $19 25. Nd2 Be5 26. dxe4 Bd4+ 27. Kh2 fxe4 28. Rxf8+ Kxf8) 25. Kh1 {[%emt 0:06:38]} Rg7 {[%emt 0:02:00]} 26. Nh4 {[%emt 0:00:55]} Rg5 {[%emt 0:04:04]} 27. a3 {[%emt 0:04:36]} a5 {[%emt 0:04:00]} 28. Ba2 {[%emt 0:01:37]} Rg3 {[%emt 0:05:59]} (28... Nd7 $19 29. Nf3 Rh5) 29. Rf3 {[%emt 0:00:58] White is weak on the dark squares} (29. Ref2 $17) 29... Rxf3 $19 {[%emt 0:00:26]} 30. Nxf3 {[%emt 0:01:08]} h5 {[%emt 0:01:28]} 31. Nh4 {[%emt 0:04:50]} Bg5 {[%emt 0:02:47]} 32. Nf3 {[%emt 0:00:08]} Bf4 {[%emt 0:01:17]} 33. Nh4 $1 {[%emt 0:00:07]} Bg5 {[%emt 0:00:10]} 34. Nf3 {[%emt 0:00:09]} Bc1 {[%emt 0:00:22]} 35. Re1 {[%emt 0:04:48]} Bf4 {[%emt 0:00:09]} ({Stronger than} 35... Bxb2 36. Rb1 e4 37. Rxb2 exf3 38. gxf3 $17) 36. Re2 {[%emt 0:01:50]} (36. g3 {might work better.} Bxg3 37. Rg1) 36... Kg7 {[%emt 0:00:46]} 37. Nh4 {[%emt 0:01:09]} Bg5 {[%emt 0:00:28]} 38. Nf3 {[%emt 0:00:07]} Bf4 {[%emt 0:01:32]} 39. Nh4 $1 {[%emt 0:00:37]} Bg5 {[%emt 0:00:07]} 40. Nf3 {[%emt 0:00:04]} Kg6 {[%emt 0:01:32]} 41. Kg1 {[%emt 0:55:55]} Rc8 {[%emt 0:25:41]} 42. Kf2 {[%emt 0:00:00]} Kf6 {[%emt 0:03:44]} 43. h4 {[%emt 0:00:00]} Bh6 {[%emt 0:01:10]} 44. Bb3 {[%emt 0:00:00]} a4 {[%emt 0:06:19]} 45. Bc4 {[%emt 0:00:00] [#]} (45. Ba2) 45... Nxc4 {[%emt 0:01:55] Black is clearly winning.} 46. dxc4 {[%emt 0:00:00][%mdl 4096] Endgame KRB-KRN} Ra8 {[%emt 0:05:55]} 47. g3 {[%emt 0:00:00]} (47. Rc2 $142 e4 48. Ng1) 47... Ra6 {[%emt 0:00:38]} 48. Rc2 {[%emt 0:00:00]} Rb6 {[%emt 0:01:10]} 49. Ng1 {[%emt 0:00:00]} Rb3 {[%emt 0:01:10]} 50. Ne2 {[%emt 0:00:00]} Be3+ {[%emt 0:00:24]} 51. Kg2 {[%emt 0:00:05]} Bd4 {[%emt 0:00:11] Weighted Error Value: White=0.38/Black=0.34} 0-1

[Event "86th Tata Steel Tienkamp 2024"]
[Site "Wijk aan Zee"]
[Date "2024.01.20"]
[Round "2.4"]
[White "Abdulla, Murad"]
[Black "Pijpers, Arthur"]
[Result "0-1"]
[ECO "B50"]
[WhiteElo "2332"]
[BlackElo "2441"]
[Annotator "RC"]
[PlyCount "88"]
[EventDate "2024.01.02"]
[EventType "tourn"]
[EventCountry "NED"]
[SourceTitle "playchess.com"]
[Source "ChessBase"]
[SourceQuality "1"]
[TimeControl "40/6000+30:20/3000+30:900+30"]

1. e4 {[%emt 0:10:03]} c5 {[%emt 0:10:04]} 2. Nf3 {[%emt 0:00:27]} Nc6 {[%emt 0:00:04]} 3. g3 {[%emt 0:00:51]} g6 {[%emt 0:02:21]} 4. Bg2 {[%emt 0:01:14]} Bg7 {[%emt 0:00:05]} 5. O-O {[%emt 0:00:12]} d6 {[%emt 0:02:04]} 6. c3 {[%emt 0:03:54]} e5 {[%emt 0:02:01]} 7. Na3 {[%emt 0:01:19]} Nge7 {[%emt 0:02:48]} 8. Nc2 {[%emt 0:00:42]} O-O {[%emt 0:12:52]} 9. d4 {[%emt 0:01:17]} exd4 {[%emt 0:02:00]} 10. cxd4 {[%emt 0:00:08]} Bg4 {[%emt 0:00:16]} 11. d5 {[%emt 0:07:48]} Ne5 {[%emt 0:00:05]} 12. Ne3 {[%emt 0:01:02]} Bxf3 {[%emt 0:08:02]} 13. Bxf3 {[%emt 0:00:07]} Nxf3+ {[%emt 0:00:04]} 14. Qxf3 {[%emt 0:00:05]} f5 {[%emt 0:00:04]} 15. a4 {[%emt 0:03:55]} Qd7 {[%emt 0:04:57]} 16. Nc4 {[%emt 0:13:18]} fxe4 {[%emt 0:05:31]} 17. Qxe4 {[%emt 0:00:12]} Rae8 {[%emt 0:00:04]} 18. Be3 {[%emt 0:29:41]} Rf5 {[%emt 0:13:13]} 19. Qe6+ {[%emt 0:11:07]} Qxe6 {[%emt 0:00:06]} 20. dxe6 {[%emt 0:00:04]} Nc8 {[%emt 0:00:14]} 21. Bf4 {[%emt 0:02:27]} Rxe6 {[%emt 0:09:18]} 22. Rfe1 {[%emt 0:02:26]} Rff6 {[%emt 0:00:06]} 23. Red1 {[%emt 0:01:39]} Rf7 {[%emt 0:17:25]} 24. Ra2 {[%emt 0:11:03]} Bd4 {[%emt 0:05:27]} 25. b4 {[%emt 0:00:40]} Nb6 {[%emt 0:06:18]} 26. Nxb6 {[%emt 0:07:11]} axb6 {[%emt 0:00:01]} 27. a5 {[%emt 0:00:31]} bxa5 {[%emt 0:01:17]} 28. Rxa5 {[%emt 0:00:22]} Kg7 {[%emt 0:01:10]} 29. Rb5 {[%emt 0:00:28]} Re2 {[%emt 0:02:33]} 30. Rxd4 {[%emt 0:00:43]} cxd4 {[%emt 0:00:17]} 31. Rd5 {[%emt 0:00:03]} Rd7 {[%emt 0:02:07]} 32. Bxd6 {[%emt 0:01:01]} Kf7 {[%emt 0:00:02]} 33. Rxd4 {[%emt 0:00:20]} Ke6 {[%emt 0:00:24]} 34. Bc5 {[%emt 0:00:34]} Rxd4 {[%emt 0:00:14]} 35. Bxd4 {[%emt 0:00:03]} Kd5 {[%emt 0:01:10]} 36. Bc5 {[%emt 0:00:13]} Re6 {[%emt 0:01:10]} 37. Kg2 {[%emt 0:00:37]} b6 {[%emt 0:00:24]} 38. Bf8 {[%emt 0:00:02]} Re8 {[%emt 0:00:15]} 39. Bh6 {[%emt 0:00:10]} Kc4 {[%emt 0:01:05]} 40. Bd2 {[%emt 0:01:07]} Rd8 {[%emt 0:01:30]} 41. Be1 {[%emt 0:50:58]} Rd1 {[%emt 0:24:54]} 42. Kf1 {[%emt 0:00:00]} Kd3 {[%emt 0:01:25]} 43. h3 {[%emt 0:00:00]} Rb1 {[%emt 0:00:28]} 44. f4 {[%emt 0:00:00]} Ke3 {[%emt 0:00:13]} 0-1

[Event "86th Tata Steel Tienkamp 2024"]
[Site "Wijk aan Zee"]
[Date "2024.01.20"]
[Round "2.5"]
[White "Bekker, Stefan"]
[Black "Van Foreest, Machteld"]
[Result "0-1"]
[ECO "B11"]
[WhiteElo "2274"]
[BlackElo "2363"]
[Annotator "RC"]
[PlyCount "102"]
[EventDate "2024.01.02"]
[EventType "tourn"]
[EventCountry "NED"]
[SourceTitle "playchess.com"]
[Source "ChessBase"]
[SourceQuality "1"]
[TimeControl "40/6000+30:20/3000+30:900+30"]

1. e4 {[%emt 0:10:02]} c6 {[%emt 0:11:01]} 2. Nc3 {[%emt 0:00:09]} d5 {[%emt 0:00:25]} 3. Nf3 {[%emt 0:00:06]} Nf6 {[%emt 0:18:59]} 4. e5 {[%emt 0:03:14]} Ne4 {[%emt 0:04:15]} 5. d3 {[%emt 0:02:02]} Nxc3 {[%emt 0:00:28]} 6. bxc3 {[%emt 0:00:06]} c5 {[%emt 0:05:24]} 7. Be2 {[%emt 0:05:11]} Nc6 {[%emt 0:02:07]} 8. O-O {[%emt 0:00:36]} Bg4 {[%emt 0:03:34]} 9. Rb1 {[%emt 0:14:45]} Qc7 {[%emt 0:06:49]} 10. d4 {[%emt 0:10:10]} e6 {[%emt 0:00:57]} 11. Be3 {[%emt 0:01:57]} Be7 {[%emt 0:01:29]} 12. h3 {[%emt 0:05:08]} Bxf3 {[%emt 0:06:02]} 13. Bxf3 {[%emt 0:01:27]} c4 {[%emt 0:00:07]} 14. Be2 {[%emt 0:01:49]} O-O-O {[%emt 0:05:53]} 15. g3 {[%emt 0:05:21]} f6 {[%emt 0:02:20]} 16. f4 {[%emt 0:02:52]} Qa5 {[%emt 0:02:06]} 17. Qd2 {[%emt 0:00:44]} h5 {[%emt 0:00:24]} 18. Kg2 {[%emt 0:06:12]} Rdf8 {[%emt 0:00:18]} 19. exf6 {[%emt 0:06:33]} gxf6 {[%emt 0:04:04]} 20. f5 {[%emt 0:00:05]} e5 {[%emt 0:02:18]} 21. dxe5 {[%emt 0:00:40]} fxe5 {[%emt 0:02:19]} 22. a4 {[%emt 0:00:04]} d4 {[%emt 0:07:32]} 23. cxd4 {[%emt 0:03:35]} c3 {[%emt 0:00:04]} 24. Qd3 {[%emt 0:00:48]} exd4 {[%emt 0:00:05]} 25. Bf4 {[%emt 0:01:26]} Bd6 {[%emt 0:04:43]} 26. Qb5 {[%emt 0:07:41]} Qxb5 {[%emt 0:03:01]} 27. Rxb5 {[%emt 0:04:11]} Bxf4 {[%emt 0:07:17]} 28. Rxf4 {[%emt 0:00:07]} Rh6 {[%emt 0:01:05]} 29. Bf3 {[%emt 0:05:01]} Kc7 {[%emt 0:02:34]} 30. Be4 {[%emt 0:02:39]} a6 {[%emt 0:02:58]} 31. Rb1 {[%emt 0:03:54]} b6 {[%emt 0:02:34]} 32. g4 {[%emt 0:03:36]} hxg4 {[%emt 0:00:02]} 33. hxg4 {[%emt 0:00:06]} Ne5 {[%emt 0:00:07]} 34. Rg1 {[%emt 0:01:09]} Rfh8 {[%emt 0:01:56]} 35. Kf2 {[%emt 0:00:19]} Rh4 {[%emt 0:00:56]} 36. f6 {[%emt 0:01:57]} b5 {[%emt 0:00:49]} 37. axb5 {[%emt 0:01:00]} axb5 {[%emt 0:00:01]} 38. f7 {[%emt 0:00:22]} Rh2+ {[%emt 0:00:56]} 39. Rg2 {[%emt 0:02:19]} Rxg2+ {[%emt 0:00:06]} 40. Kxg2 {[%emt 0:00:14]} Rf8 {[%emt 0:00:38]} 41. g5 {[%emt 0:30:26]} Rxf7 {[%emt 0:24:26]} 42. Rxf7+ {[%emt 0:00:33]} Nxf7 {[%emt 0:00:01]} 43. g6 {[%emt 0:00:05]} Nh6 {[%emt 0:00:23]} 44. Bd3 {[%emt 0:03:39]} Kd6 {[%emt 0:08:20]} 45. Bxb5 {[%emt 0:08:23]} Ke6 {[%emt 0:00:18]} 46. Kf3 {[%emt 0:01:47]} Nf5 {[%emt 0:03:25]} 47. Kg4 {[%emt 0:04:19]} Kf6 {[%emt 0:01:49]} 48. Bd3 {[%emt 0:01:20]} Ng7 {[%emt 0:03:21]} 49. Kh4 {[%emt 0:01:16]} Ne6 {[%emt 0:00:24]} 50. Kg3 {[%emt 0:03:30]} Nc5 {[%emt 0:00:04]} 51. Bf5 {[%emt 0:00:28]} Kxf5 {[%emt 0:00:09]} 0-1

[Event "86th Tata Steel Tienkamp 2024"]
[Site "Wijk aan Zee"]
[Date "2024.01.21"]
[Round "3.1"]
[White "Pijpers, Arthur"]
[Black "Niermann, Tristan"]
[Result "1-0"]
[ECO "B67"]
[WhiteElo "2441"]
[BlackElo "2413"]
[Annotator "RC"]
[PlyCount "63"]
[EventDate "2024.01.02"]
[EventType "tourn"]
[EventCountry "NED"]
[SourceTitle "playchess.com"]
[Source "ChessBase"]
[SourceQuality "1"]
[TimeControl "40/6000+30:20/3000+30:900+30"]

1. e4 {[%emt 0:10:03]} c5 {[%emt 0:10:08]} 2. Nf3 {[%emt 0:00:04]} d6 {[%emt 0:00:06]} 3. d4 {[%emt 0:00:03]} cxd4 {[%emt 0:00:04]} 4. Nxd4 {[%emt 0:00:04]} Nf6 {[%emt 0:00:07]} 5. Nc3 {[%emt 0:00:02]} Nc6 {[%emt 0:00:11]} 6. Bg5 {[%emt 0:00:05]} e6 {[%emt 0:00:07]} 7. Qd2 {[%emt 0:00:04]} a6 {[%emt 0:00:10]} 8. O-O-O {[%emt 0:00:06]} Bd7 {[%emt 0:00:06]} 9. Kb1 {[%emt 0:00:04]} Nxd4 {[%emt 0:00:20]} 10. Qxd4 {[%emt 0:00:06]} Be7 {[%emt 0:00:10]} 11. f4 {[%emt 0:00:13]} Bc6 {[%emt 0:00:19]} 12. f5 {[%emt 0:00:17]} Qa5 {[%emt 0:00:08]} 13. Bc4 {[%emt 0:00:13]} exf5 {[%emt 0:00:20]} 14. exf5 {[%emt 0:00:08]} Qxf5 {[%emt 0:05:31]} 15. Bxf6 {[%emt 0:00:21]} Qxf6 {[%emt 0:02:01]} 16. Qb6 {[%emt 0:00:06]} O-O {[%emt 0:09:26]} 17. Nd5 {[%emt 0:00:16]} Qe5 {[%emt 0:07:33]} 18. Qf2 {[%emt 0:00:13]} Bxd5 {[%emt 0:04:45]} 19. Rxd5 {[%emt 0:00:18]} Qf6 {[%emt 0:01:57]} 20. Rf5 {[%emt 0:08:54]} Qh4 {[%emt 0:02:16]} 21. Bxf7+ {[%emt 0:03:42]} Kh8 {[%emt 0:00:12]} 22. g3 {[%emt 0:14:05]} Qa4 {[%emt 0:08:51]} 23. Re1 {[%emt 0:17:31]} Qd7 {[%emt 0:01:34]} 24. Qf3 {[%emt 0:15:29]} Qd8 {[%emt 0:13:04]} 25. Qh5 {[%emt 0:10:59]} h6 {[%emt 0:00:50]} 26. h4 {[%emt 0:01:36]} Bf6 {[%emt 0:11:20]} 27. Re6 {[%emt 0:01:13]} Qb6 {[%emt 0:00:28]} 28. Rexf6 {[%emt 0:04:13]} Qe3 {[%emt 0:01:55]} 29. a3 {[%emt 0:01:07]} gxf6 {[%emt 0:00:21]} 30. Rg5 {[%emt 0:01:27]} Qe1+ {[%emt 0:04:39]} 31. Ka2 {[%emt 0:00:04]} Rxf7 {[%emt 0:00:32]} 32. Qxh6+ {[%emt 0:00:06]} 1-0

[Event "86th Tata Steel Tienkamp 2024"]
[Site "Wijk aan Zee"]
[Date "2024.01.21"]
[Round "3.2"]
[White "Van Foreest, Machteld"]
[Black "Abdulla, Murad"]
[Result "1-0"]
[ECO "B76"]
[WhiteElo "2363"]
[BlackElo "2332"]
[Annotator "RC"]
[PlyCount "83"]
[EventDate "2024.01.02"]
[EventType "tourn"]
[EventCountry "NED"]
[SourceTitle "playchess.com"]
[Source "ChessBase"]
[SourceQuality "1"]
[TimeControl "40/6000+30:20/3000+30:900+30"]

1. e4 {[%emt 0:10:07]} c5 {[%emt 0:13:06]} 2. Nf3 {[%emt 0:00:06]} d6 {[%emt 0:00:11]} 3. d4 {[%emt 0:00:06]} cxd4 {[%emt 0:00:20]} 4. Nxd4 {[%emt 0:00:06]} Nf6 {[%emt 0:00:10]} 5. Nc3 {[%emt 0:00:09]} g6 {[%emt 0:00:07]} 6. Be3 {[%emt 0:00:17]} Bg7 {[%emt 0:02:04]} 7. f3 {[%emt 0:00:04]} O-O {[%emt 0:01:04]} 8. Qd2 {[%emt 0:00:07]} Nc6 {[%emt 0:00:11]} 9. O-O-O {[%emt 0:00:07]} d5 {[%emt 0:00:41]} 10. exd5 {[%emt 0:00:14]} Nxd5 {[%emt 0:00:06]} 11. Nxc6 {[%emt 0:00:06]} bxc6 {[%emt 0:00:04]} 12. Bd4 {[%emt 0:00:04]} e5 {[%emt 0:00:55]} 13. Bc5 {[%emt 0:00:10]} Re8 {[%emt 0:00:40]} 14. Ne4 {[%emt 0:00:11]} Qc7 {[%emt 0:00:45]} 15. h4 {[%emt 0:00:33]} f5 {[%emt 0:07:28]} 16. Nd6 {[%emt 0:00:53]} Rd8 {[%emt 0:00:19]} 17. Nxc8 {[%emt 0:05:20]} Raxc8 {[%emt 0:00:12]} 18. h5 {[%emt 0:03:31]} Nb6 {[%emt 0:03:53]} 19. Bxb6 {[%emt 0:00:58]} Rxd2 {[%emt 0:03:37]} 20. Bc4+ {[%emt 0:00:07]} Kf8 {[%emt 0:00:57]} 21. Bxc7 {[%emt 0:00:07]} Rxd1+ {[%emt 0:00:12]} 22. Rxd1 {[%emt 0:00:11]} Bh6+ {[%emt 0:00:18]} 23. Kb1 {[%emt 0:01:03]} Rxc7 {[%emt 0:00:04]} 24. hxg6 {[%emt 0:13:53]} hxg6 {[%emt 0:00:10]} 25. Rd6 {[%emt 0:00:21]} Kg7 {[%emt 0:03:04]} 26. Re6 {[%emt 0:07:40]} Bf4 {[%emt 0:07:33]} 27. b4 {[%emt 0:01:57]} c5 {[%emt 1:04:03]} 28. b5 {[%emt 0:00:43]} g5 {[%emt 0:00:34]} 29. a4 {[%emt 0:00:39]} g4 {[%emt 0:01:00]} 30. fxg4 {[%emt 0:00:50]} fxg4 {[%emt 0:00:03]} 31. a5 {[%emt 0:00:19]} Bd2 {[%emt 0:01:06]} 32. b6 {[%emt 0:01:02]} Rd7 {[%emt 0:00:43]} 33. Bb5 {[%emt 0:07:11]} Rf7 {[%emt 0:00:17]} 34. Be8 {[%emt 0:00:36]} Rf1+ {[%emt 0:00:43]} 35. Kb2 {[%emt 0:00:08]} axb6 {[%emt 0:00:23]} 36. a6 {[%emt 0:02:10]} Bc1+ {[%emt 0:00:37]} 37. Ka2 {[%emt 0:01:51]} Be3 {[%emt 0:00:44]} 38. Rd6 {[%emt 0:07:52]} Rf8 {[%emt 0:00:28]} 39. Rd8 {[%emt 0:01:05]} Bg5 {[%emt 0:00:33]} 40. Rb8 {[%emt 0:00:33]} e4 {[%emt 0:00:28]} 41. a7 {[%emt 0:50:18]} e3 {[%emt 0:50:32]} 42. a8=Q {[%emt 0:00:12]} 1-0